fUSD/lending_fUSD_20240330
["ID","MTS","AMOUNT","RATE_DAILY","PERIOD"]
[321045131,1711816239871,-1022.28221703,0.00040981,2]
[321045132,1711816239881,-3526.99567945,0.00040983,2]
[321045133,1711816239890,-10794.74435227,0.00040985,2]
[321045134,1711816239899,-10794.74435227,0.00040986,2]
[321045135,1711816239909,-3526.99567945,0.00040986,2]
[321045136,1711816239918,-427.51462781,0.00040987,2]
[321045137,1711816239928,-11008.50166618,0.00040988,2]
[321045138,1711816239938,-3591.98540018,0.00040989,2]
[321045139,1711816239948,-1333.0,0.0004099,15]
[321045140,1711816239957,-168.0,0.0004099,15]
[321045141,1711816239966,-3526.99567945,0.0004099,2]
[321045142,1711816239976,-3591.98540018,0.00040991,2]
[321045144,1711816239986,-3591.98540018,0.00040991,2]
[321045146,1711816239995,-427.51462781,0.00040992,2]
[321045147,1711816240004,-8845.2459295,0.00040992,2]
[321045148,1711816240017,-1949.49842277,0.00040992,2]
[321045149,1711816240027,-3544.00937723,0.00040993,2]
[321045150,1711816240351,-47.97602295,0.00040993,2]
[321045151,1711816240363,-2818.27491712,0.00040995,2]
[321045152,1711816240373,-165.7454,0.00040995,2]
[321045153,1711816240384,-2569.70318315,0.00040995,2]
[321045154,1711816240394,-427.51462782,0.00040996,2]
[321045155,1711816240404,-2569.70318316,0.00040998,2]
[321045156,1711816240414,-427.51462781,0.00040998,2]
[321045157,1711816240424,-350.995,0.00040998,4]
[321045158,1711816240435,-3641.40814063,0.00040998,4]
[321045159,1711816240445,-1212.50002883,0.00040998,4]
[321045160,1711816240455,-4176.20745497,0.00040998,4]
[321045161,1711816240464,-155.64136116,0.00040998,4]
[321045162,1711816240475,-406.14776931,0.00040998,4]
[321045163,1711816240485,-1123.24884852,0.00040998,4]
[321045164,1711816240496,-202.99503572,0.00040998,4]
[321045165,1711816240505,-4908.25633118,0.00040998,4]
[321045166,1711816240530,-1168.21655233,0.00040998,4]
[321045167,1711816240540,-333.06266418,0.00040998,4]
[321045168,1711816240550,-294.93504659,0.00040998,4]
[321045169,1711816240560,-156.06779099,0.00040998,4]
[321045170,1711816240570,-873.84382804,0.00040999,4]
[321045172,1711816240580,-3298.16845286,0.00040999,2]
[321045174,1711816240590,-300.0,0.00040999,2]
[321045176,1711816240600,-300.0,0.00040999,2]
[321045178,1711816240615,-300.0,0.00040999,2]
[321045181,1711816240625,-300.0,0.00040999,2]
[321045183,1711816240635,-300.0,0.00040999,2]
[321045185,1711816240646,-300.0,0.00040999,2]
[321045187,1711816240656,-300.0,0.00040999,2]
[321045189,1711816240665,-300.0,0.00040999,2]
[321045191,1711816240675,-300.0,0.00040999,2]
[321045193,1711816240685,-300.0,0.00040999,2]
[321045195,1711816240695,-300.0,0.00040999,2]
[321045197,1711816240705,-355.97511575,0.00040999,2]
[321045199,1711816240714,-393.42372,0.00040999,7]
[321045201,1711816240724,-11008.50166618,0.00041,2]
[321045202,1711816240734,-119915.56516305,0.00041,5]
[321045203,1711816240756,-522.59193334,0.00041,5]
[321045204,1711816240774,-460.63094984,0.00041,5]
[321045205,1711816240797,-634.16987759,0.00041,5]
[321045206,1711816240813,-3001.42345312,0.00041,5]
[321045207,1711816240825,-1499.97790222,0.00041,5]
[321045208,1711816240848,-458.68758806,0.00041,5]
[321045215,1711816243186,-1026.33137782,0.00040994,4]
[321045216,1711816243196,-1243.45748234,0.00041,5]
[321045217,1711816243242,-1458.78306831,0.00041,5]
[321045218,1711816243298,-6671.82516668,0.00041,5]
[321045219,1711816243311,-1718.2306774,0.00041,5]
[321045220,1711816243357,-21475.78686982,0.00041,5]
[321045221,1711816243466,-333.42,0.0004099,10]
[321045222,1711816243476,-3870.58294122,0.00041,5]
[321045223,1711816243578,-2849.22220706,0.00041,5]
[321045224,1711816243636,-16161.88300779,0.00041,5]
[321045225,1711816243647,-5866.74233429,0.00041,5]
[321045226,1711816243658,-23029.74714387,0.00041,5]
[321045227,1711816243669,-3908.05134952,0.00041,5]
[321045228,1711816243680,-962.46411608,0.00041,5]
[321045229,1711816243693,-1167.507,0.00041,5]
[321045295,1711816246221,-7031.04011014,0.00041,5]
[321045296,1711816246365,-9742.82298174,0.00041,5]
[321045297,1711816246376,-349.811,0.00041,5]
[321045298,1711816246600,-2066.06392,0.00041,5]
[321045371,1711816263016,173.37121215,0.000255,2]
[321045389,1711816843191,331.60241423,0.000301,2]
[321045391,1711816987774,678.24196898,0.000301,4]
[321045392,1711817005651,817.36421007,0.000301,4]
[321045493,1711817432386,-164.3717067,0.00034288,2]
[321045494,1711817432396,-4006.19767437,0.00034386,4]
[321045495,1711817432407,-5173.46535587,0.00034386,2]
[321045496,1711817432417,-1653.92905984,0.00034387,4]
[321045497,1711817432426,-561.1982,0.00034398,2]
[321045498,1711817432435,-150.0,0.00034548,10]
[321045499,1711817432445,-2000.0,0.00035,12]
[321045500,1711817432455,-2500.0,0.00035,12]
[321045501,1711817432466,-2500.0,0.00035,12]
[321045502,1711817432475,-704.18,0.00035618,2]
[321045503,1711817432485,-22390.08980019,0.00036748,4]
[321045504,1711817432495,-155.39,0.00037321,2]
[321045505,1711817432504,-509.58,0.0003746,2]
[321045506,1711817432513,-12560.32,0.00037482,2]
[321045507,1711817432523,-1734.26,0.00037482,2]
[321045508,1711817432533,-200.0,0.00037506,2]
[321045509,1711817432543,-233.52,0.0003751,2]
[321045510,1711817432553,-29489.0,0.00037513,2]
[321045511,1711817432565,-200.0,0.0003752,2]
[321045512,1711817432574,-539.28,0.00037549,2]
[321045513,1711817432583,-2408.9,0.00037586,2]
[321045514,1711817432593,-250.0,0.00037621,112]
[321045515,1711817432601,-1782.49,0.0003769,2]
[321045516,1711817432611,-1436.32,0.00037714,2]
[321045517,1711817432620,-500.0,0.00037764,2]
[321045518,1711817432629,-3198.5,0.00037772,2]
[321045519,1711817432638,-150.0,0.0003782,2]
[321045524,1711817432866,-704.18,0.00037882,2]
[321045525,1711817432877,-500.0,0.00037926,2]
[321045526,1711817432887,-277.85,0.00037928,10]
[321045527,1711817432896,-231.55,0.00037928,10]
[321045528,1711817432906,-192.95,0.00037928,10]
[321045529,1711817432915,-1909.38,0.00037938,2]
[321045530,1711817432925,-1041.7,0.00038021,2]
[321045531,1711817432934,-159.79,0.00038027,15]
[321045532,1711817432943,-164.11,0.00038086,2]
[321045533,1711817432953,-800.0,0.00038113,2]
[321045534,1711817432962,-250.0,0.00038134,2]
[321045535,1711817432972,-426.5,0.00038136,2]
[321045536,1711817432982,-311.32980376,0.00038161,4]
[321045537,1711817432992,-23890.0,0.00038162,2]
[321045538,1711817433001,-1792.06,0.00038162,2]
[321045539,1711817433010,-164.11,0.00038748,2]
[321045540,1711817433021,-167.01,0.00038841,2]
[321045541,1711817433030,-264.67,0.00038852,2]
[321045542,1711817433040,-634.5070686,0.0003895,4]
[321045543,1711817433049,-6855.2803,0.00039285,2]
[321045544,1711817433058,-164.11,0.0003941,2]
[321045545,1711817433067,-10977.10895672,0.0003958,2]
[321045546,1711817433077,-1041.6383,0.000396,2]
[321045547,1711817433086,-790.0,0.000396,3]
[321045548,1711817433095,-2500.0,0.000396,2]
[321045549,1711817433105,-155.0,0.00039679,4]
[321045550,1711817433115,-4923.6204,0.0003968,2]
[321045551,1711817433124,-153.29397188,0.0003968,5]
[321045552,1711817433133,-202.31082468,0.0003968,2]
[321045553,1711817433142,-3463.38872383,0.0003968,13]
[321045554,1711817433151,-592.29728871,0.0003968,2]
[321045555,1711817433161,-164.37170669,0.0003968,2]
[321045556,1711817433171,-155.94863521,0.0003968,9]
[321045557,1711817433180,-155.39,0.00039688,2]
[321045558,1711817433190,-160.62677764,0.0003969,2]
[321045559,1711817433199,-213.17723806,0.00039697,2]
[321045560,1711817433209,-441793.82193933,0.000397,2]
[321045561,1711817433334,-5325.560133,0.000397,2]
[321045562,1711817433346,-1477.67255991,0.000397,2]
[321045569,1711817438324,-51379.47665855,0.000397,2]
[321045570,1711817438343,-1158.27838354,0.000397,2]
[321045571,1711817438434,-71769.72156767,0.000397,2]
[321045572,1711817438445,-2530.7208,0.0003978,2]
[321045573,1711817438454,-5651.693,0.0003978,2]
[321045574,1711817438464,-612.4536,0.0003978,2]
[321045575,1711817438473,-682.1145,0.0003978,2]
[321045576,1711817438483,-100000.0,0.0003978,2]
[321045577,1711817438492,-1713.38818546,0.0003978,2]
[321045578,1711817438503,-3812.2546376,0.0003978,2]
[321045579,1711817438514,-2235.66313192,0.0003978,2]
[321045580,1711817438606,-237238.69404502,0.0003978,2]
[321045581,1711817438616,-500.0,0.0003978,2]
[321045582,1711817438626,-1000.0,0.0003978,2]
[321045583,1711817438635,-10977.1089567,0.0003995,2]
[321045584,1711817438645,-164.11,0.00040071,2]
[321045585,1711817438654,-704.18,0.00040146,2]
[321045586,1711817438663,-150.0,0.00040178,2]
[321045587,1711817438673,-509.58,0.000402,2]
[321045588,1711817438682,-3463.38872377,0.00040223,14]
[321045589,1711817438691,-152.0,0.00040312,3]
[321045590,1711817438701,-10977.1089567,0.00040321,2]
[321045591,1711817438710,-153.29397188,0.00040441,8]
[321045592,1711817438720,-28732.6303029,0.0004059,2]
[321045593,1711817438729,-10977.1089567,0.00040691,2]
[321045594,1711817438738,-150.0,0.00040753,2]
[321045595,1711817438748,-3463.38872377,0.00040766,14]
[321045596,1711817438758,-343.44,0.00040822,2]
[321045597,1711817438767,-206.674619,0.00040849,15]
[321045599,1711817438776,-800.0,0.00040849,15]
[321045600,1711817438786,-500.0,0.00040849,20]
[321045602,1711817438795,-200.0,0.00040849,20]
[321045605,1711817438805,-150.0,0.00040852,2]
[321045606,1711817438814,-150.0,0.00040852,2]
[321045608,1711817438824,-150.0,0.00040852,2]
[321045610,1711817438833,-150.0,0.00040852,2]
[321045612,1711817438843,-150.0,0.00040852,2]
[321045614,1711817438852,-7500.0,0.000409,2]
[321045616,1711817438862,-5000.0,0.00040907,2]
[321045618,1711817438871,-169.37375036,0.00040919,2]
[321045620,1711817438881,-880.24122619,0.00040923,2]
[321045622,1711817438890,-951.26172161,0.00040923,2]
[321045624,1711817438900,-1464.40249306,0.00040924,2]
[321045626,1711817438909,-257.6283077,0.00040924,2]
[321045628,1711817438919,-880.24122619,0.00040925,2]
[321045630,1711817438929,-257.6283077,0.00040925,2]
[321045632,1711817438939,-257.6283077,0.00040926,2]
[321045633,1711817438949,-1649.95238338,0.00040926,2]
[321045634,1711817438958,-169.37375036,0.00040927,2]
[321045635,1711817438968,-1101.30136421,0.00040927,2]
[321045636,1711817438977,-880.24122619,0.00040928,2]
[321045637,1711817438987,-951.26172161,0.00040929,2]
[321045638,1711817438999,-659.18108817,0.00040929,2]
[321045639,1711817439008,-880.24122619,0.00040929,2]
[321045640,1711817439017,-257.6283077,0.0004093,2]
[321045641,1711817439028,-951.26172161,0.00040931,2]
[321045642,1711817439039,-880.24122619,0.00040933,2]
[321045643,1711817439050,-880.24122619,0.00040933,2]
[321045644,1711817439059,-880.24122619,0.00040934,2]
[321045645,1711817439069,-1101.30136421,0.00040934,2]
[321045646,1711817439079,-1464.40249306,0.00040935,2]
[321045647,1711817439090,-169.37375036,0.00040936,2]
[321045648,1711817439100,-1101.30136421,0.00040936,2]
[321045649,1711817439110,-1649.95238338,0.00040936,2]
[321045650,1711817439120,-5409.18876807,0.00040937,2]
[321045651,1711817439130,-659.18108817,0.00040939,2]
[321045652,1711817439139,-1464.40249306,0.0004094,2]
[321045653,1711817439149,-880.24122619,0.00040945,2]
[321045654,1711817439158,-659.18108817,0.00040945,2]
[321045655,1711817439169,-880.24122619,0.00040946,2]
[321045656,1711817439179,-44416.09131894,0.00040946,2]
[321045657,1711817439188,-659.18108817,0.00040947,2]
[321045658,1711817439197,-880.24122619,0.00040948,2]
[321045659,1711817439206,-44416.09131894,0.00040949,2]
[321045660,1711817439215,-5409.18876807,0.0004095,2]
[321045661,1711817439224,-880.24122619,0.0004095,2]
[321045662,1711817439234,-659.18108817,0.0004095,2]
[321045663,1711817439244,-1464.40249306,0.0004095,2]
[321045664,1711817439253,-880.24122619,0.00040953,2]
[321045665,1711817439262,-951.26172161,0.00040953,2]
[321045666,1711817439272,-169.37375036,0.00040954,2]
[321045667,1711817439282,-880.24122619,0.00040955,2]
[321045668,1711817439292,-1428.89224536,0.00040955,2]
[321045669,1711817439301,-1101.30136421,0.00040958,2]
[321045670,1711817439310,-1428.89224536,0.00040958,2]
[321045671,1711817439320,-10000.0,0.00040958,2]
[321045672,1711817439330,-880.24122619,0.00040958,2]
[321045673,1711817439339,-1649.95238338,0.00040958,2]
[321045674,1711817439348,-5409.18876807,0.0004096,2]
[321045675,1711817439357,-1464.40249306,0.00040962,2]
[321045676,1711817439367,-659.18108817,0.00040962,2]
[321045677,1711817439379,-951.26172161,0.00040963,2]
[321045678,1711817439388,-5409.18876807,0.00040963,2]
[321045679,1711817439397,-257.6283077,0.00040963,2]
[321045680,1711817439407,-1428.89224536,0.00040965,2]
[321045681,1711817439416,-880.24122619,0.00040966,2]
[321045682,1711817439424,-189.32653043,0.00040967,2]
[321045683,1711817439433,-880.24122619,0.00040969,2]
[321045684,1711817439442,-1428.89224536,0.0004097,2]
[321045685,1711817439453,-1333.0,0.0004097,15]
[321045686,1711817439462,-189.32653043,0.0004097,2]
[321045687,1711817439471,-880.24122619,0.0004097,2]
[321045688,1711817439687,-951.26172161,0.00040971,2]
[321045689,1711817439697,-189.32653043,0.00040972,2]
[321045690,1711817439707,-880.24122619,0.00040972,2]
[321045691,1711817439717,-1649.95238338,0.00040973,2]
[321045692,1711817439726,-44416.09131894,0.00040973,2]
[321045693,1711817439736,-44416.09131894,0.00040974,2]
[321045694,1711817439745,-880.24122619,0.00040975,2]
[321045695,1711817439756,-189.32653043,0.00040975,2]
[321045696,1711817439765,-5409.18876807,0.00040975,2]
[321045697,1711817439775,-880.24122619,0.00040976,2]
[321045698,1711817439784,-1649.95238338,0.00040977,2]
[321045699,1711817439793,-1428.89224536,0.00040978,2]
[321045700,1711817439803,-44416.09131894,0.00040978,2]
[321045701,1711817439814,-44416.09131894,0.00040979,2]
[321045702,1711817439823,-1428.89224536,0.00040979,2]
[321045703,1711817439833,-1101.30136421,0.0004098,2]
[321045704,1711817439842,-1649.95238338,0.0004098,2]
[321045705,1711817439851,-1333.0,0.0004098,15]
[321045706,1711817439863,-1464.40249306,0.0004098,2]
[321045707,1711817439872,-189.32653043,0.00040986,2]
[321045708,1711817439881,-168.0,0.00040986,15]
[321045709,1711817439891,-1428.89224536,0.00040987,2]
[321045710,1711817439900,-1464.40249306,0.00040987,2]
[321045711,1711817439910,-1333.0,0.0004099,15]
[321045712,1711817439920,-951.26172161,0.0004099,2]
[321045713,1711817439929,-189.32653043,0.00040991,2]
[321045714,1711817439939,-1076.96213903,0.00040991,2]
[321045718,1711817440458,-360.0,0.00039893,2]
[321045719,1711817440468,-24.33922518,0.00040991,2]
[321045720,1711817440478,-169.37375036,0.00040994,2]
[321045721,1711817440489,-62.89745661,0.00040994,2]
[321045722,1711817440544,-932.29474418,0.00040994,2]
[321045723,1711817440717,-43420.89911815,0.00040994,2]
[321045724,1711817440727,-1101.30136421,0.00040994,2]
[321045725,1711817440737,-659.18108817,0.00040994,2]
[321045726,1711817440747,-584.57333936,0.00040995,33]
[321045727,1711817440757,-805.45954144,0.00040995,2]
[321045728,1711817440766,-1470.2271995,0.00040995,2]
[321045729,1711817440776,-769.80956873,0.00040995,2]
[321045730,1711817440786,-366.66580151,0.00040995,2]
[321045731,1711817440798,-5963.13597269,0.00040995,2]
[321045732,1711817440807,-720.40856732,0.00040995,2]
[321045733,1711817440817,-189.32653043,0.00040995,2]
[321045734,1711817440826,-5409.18876807,0.00040996,2]
[321045735,1711817440836,-168.0,0.00040996,15]
[321045736,1711817440845,-5409.18876807,0.00040996,2]
[321045737,1711817440855,-257.6283077,0.00040997,2]
[321045738,1711817440864,-880.24122619,0.00040998,2]
[321045739,1711817440873,-155.0,0.00040998,2]
[321045740,1711817440883,-406.69012688,0.00040998,2]
[321045741,1711817440892,-3529.68208216,0.00040998,4]
[321045742,1711817440902,-1301.22296171,0.00040998,4]
[321045743,1711817440913,-3361.84180032,0.00040998,4]
[321045744,1711817440924,-679.96641741,0.00040998,4]
[321045745,1711817440933,-5695.62739184,0.00040998,4]
[321045746,1711817440943,-155.0,0.00040998,4]
[321045747,1711817440953,-5942.00829452,0.00040998,4]
[321045748,1711817440964,-334.56046378,0.00040998,4]
[321045749,1711817440973,-1587.5872239,0.00040998,4]
[321045750,1711817440984,-205.06550797,0.00040998,4]
[321045751,1711817440995,-157.80815582,0.00040998,4]
[321045752,1711817441006,-160.44483625,0.00040998,4]
[321045753,1711817441014,-52829.72760624,0.00040998,2]
[321045754,1711817441058,-1137.49135146,0.00040998,2]
[321045759,1711817443414,-160.8,0.0003977,10]
[321045760,1711817443423,-13999.0,0.00040998,2]
[321045761,1711817443527,-12714.26021643,0.00040998,2]
[321045762,1711817443605,-6116.51588485,0.00040998,2]
[321045763,1711817443615,-254.03947659,0.00040999,4]
[321045764,1711817443625,-150.01,0.00040999,2]
[321045765,1711817443634,-259.99539415,0.00040999,2]
[321045766,1711817443704,-1487.90155379,0.00040999,2]
[321045767,1711817443714,-169.37375036,0.00040999,2]
[321045768,1711817443724,-257.6283077,0.00040999,2]
[321045769,1711817443734,-1649.95238338,0.00040999,2]
[321045770,1711817443744,-169.37375036,0.00041,2]
[321045771,1711817443753,-608.57173123,0.00041,5]
[321045791,1711817446543,-335.25000385,0.00040997,4]
[321045792,1711817446610,-352.7727058,0.00040997,4]
[321045793,1711817446672,-1202.18193017,0.00040997,4]
[321045794,1711817446682,-1661.23181655,0.00040999,2]
[321045795,1711817446691,-3694.06375328,0.00041,5]
[321045839,1711817455159,155.0,0.000301,4]
[321045840,1711817464966,285.97161265,0.000301,2]
[321045842,1711817489039,1159.17108188,0.000301,4]
[321045843,1711817490185,2960.04294336,0.000301,4]
[321045844,1711817493914,643.60576883,0.000301,4]
[321045845,1711817505772,-1857.59175529,0.00030099,4]
[321045846,1711817505815,-142.40824471,0.000301,4]
[321045847,1711817506305,-474.56965999,0.000301,4]
[321045848,1711817506338,-1159.17108188,0.000301,4]
[321045849,1711817506372,-366.25925813,0.000301,4]
[321045850,1711817506774,-1191.63334294,0.000301,4]
[321045852,1711817511597,808.36665706,0.000301,4]
[321045853,1711817511621,1160.4176729,0.000301,4]
[321045854,1711817522489,483.2958936,0.000301,2]
[321045855,1711817522967,356.2864335,0.000301,4]
[321045856,1711817522988,778.36163746,0.000301,4]
[321045857,1711817529549,1221.63836254,0.000301,4]
[321045858,1711817529572,326.69623785,0.000301,4]
[321045859,1711817538519,363.71933546,0.000301,2]
[321045866,1711817655791,1309.58442669,0.0002,2]
[321045867,1711817655814,2000.0,0.0002,2]
[321045868,1711817655837,1834.40947487,0.0002,2]
[321045896,1711818035088,165.59052513,0.0002,2]
[321045897,1711818035110,426.99429149,0.0002,2]
[321045898,1711818042016,362.49704578,0.00029598,2]
[321045899,1711818093078,1210.50866273,0.00029598,2]
[321045900,1711818093101,2000.0,0.00029598,2]
[321045901,1711818093124,2000.0,0.00029598,2]
[321045902,1711818093147,2000.0,0.00029598,2]
[321045903,1711818093169,2000.0,0.00029598,2]
[321045904,1711818093191,2000.0,0.00029598,2]
[321045905,1711818093213,2000.0,0.00029598,2]
[321045906,1711818093239,2000.0,0.00029598,2]
[321045907,1711818093261,2000.0,0.00029598,2]
[321045908,1711818093283,2000.0,0.00029598,2]
[321045909,1711818093308,409.64437003,0.00029598,2]
[321045910,1711818340802,473.0,0.00042067,30]
[321045911,1711818345655,155.0,0.00029598,2]
[321045981,1711818632241,-250.0,0.00033,3]
[321045982,1711818632251,-300.0,0.00035,3]
[321045983,1711818632263,-798.32,0.0003591,2]
[321045984,1711818632273,-171.25985896,0.00036889,2]
[321045985,1711818632284,-155.4526654,0.00036898,4]
[321045986,1711818632294,-150.0,0.00036989,2]
[321045987,1711818632305,-150.0,0.00036989,3]
[321045988,1711818632315,-804.0,0.0003699,10]
[321045989,1711818632325,-14931.86166925,0.0003699,2]
[321045990,1711818632334,-702.75,0.0003699,2]
[321045991,1711818632343,-556.74,0.0003699,2]
[321045992,1711818632357,-350.0,0.00037,3]
[321045993,1711818632369,-54027.25271134,0.00037,4]
[321045994,1711818632386,-490.35265103,0.00037,4]
[321045995,1711818632423,-11260.61902593,0.00037,4]
[321045996,1711818632527,-845.61506804,0.00037,4]
[321045997,1711818632539,-611.97438854,0.00037,4]
[321045999,1711818637549,-26238.6275717,0.00037,4]
[321046000,1711818637565,-359.11,0.00037,2]
[321046001,1711818637579,-2239.87,0.00037,2]
[321046002,1711818637595,-153.21,0.00037,2]
[321046003,1711818637613,-499.99,0.00037,2]
[321046004,1711818637629,-1445.21,0.00037461,2]
[321046005,1711818637642,-23900.0,0.00037542,2]
[321046006,1711818637654,-1117.87,0.0003764,2]
[321046007,1711818637668,-695.62,0.00037707,2]
[321046008,1711818637682,-166.52,0.00037722,2]
[321046009,1711818637696,-844.33,0.00037756,2]
[321046010,1711818637710,-661.45,0.00037765,2]
[321046011,1711818637729,-167.32,0.00037774,2]
[321046012,1711818637741,-250.0,0.00037812,2]
[321046013,1711818637754,-156.29,0.0003796,2]
[321046014,1711818637770,-169.78,0.00038027,15]
[321046015,1711818637782,-166.52,0.00038115,2]
[321046016,1711818637794,-798.32,0.00038174,2]
[321046017,1711818637807,-629.45,0.00038289,2]
[321046018,1711818637819,-383.8,0.00038289,2]
[321046019,1711818637832,-288.0,0.00038289,2]
[321046020,1711818637845,-1000.0,0.00038356,15]
[321046021,1711818637858,-300.0,0.00038381,2]
[321046022,1711818637870,-4669.08053158,0.00038418,2]
[321046023,1711818637882,-712.0,0.00038432,2]
[321046024,1711818637896,-6901.2,0.00038432,2]
[321046025,1711818637909,-166.52,0.00038509,2]
[321046026,1711818637921,-4669.0805315,0.00038814,2]
[321046027,1711818637933,-166.52,0.00038902,2]
[321046028,1711818637946,-608.36371798,0.00038949,4]
[321046029,1711818637959,-342.51772489,0.00039,3]
[321046030,1711818638007,-57.48227511,0.00039,3]
[321046031,1711818638020,-292.21,0.00039126,2]
[321046032,1711818638033,-172.18,0.00039151,120]
[321046033,1711818638045,-4669.0805315,0.00039209,2]
[321046034,1711818638058,-2115.94,0.00039257,2]
[321046035,1711818638071,-166.52,0.00039295,2]
[321046036,1711818638083,-167.0,0.00039385,2]
[321046037,1711818638096,-529.5492,0.000395,2]
[321046038,1711818638108,-2499.9999,0.000395,2]
[321046039,1711818638121,-602.45016241,0.00039599,4]
[321046040,1711818638134,-100000.0,0.000396,2]
[321046041,1711818638147,-4669.0805315,0.00039605,2]
[321046042,1711818638160,-166.52,0.00039688,2]
[321046043,1711818638174,-7500.0,0.000397,2]
[321046044,1711818638187,-153.26447134,0.000397,5]
[321046045,1711818638199,-171.25985895,0.000397,2]
[321046047,1711818638211,-197.85258094,0.000397,2]
[321046049,1711818638223,-573.79456181,0.000397,2]
[321046051,1711818638235,-3174.77299689,0.000397,13]
[321046053,1711818638247,-467.65867152,0.0003972,31]
[321046056,1711818638260,-980.15146634,0.0003972,2]
[321046058,1711818638272,-536.97302764,0.0003972,2]
[321046060,1711818638284,-513.20637914,0.0003972,2]
[321046062,1711818638297,-244.44386766,0.0003972,2]
[321046064,1711818638310,-150.5,0.0003977,15]
[321046067,1711818638322,-150.5,0.0003977,15]
[321046069,1711818638334,-678.0,0.0003977,15]
[321046071,1711818638346,-1333.0,0.0003977,15]
[321046073,1711818638358,-151.0,0.0003977,15]
[321046076,1711818638370,-150.5,0.0003978,15]
[321046078,1711818638383,-150.5,0.0003978,15]
[321046080,1711818638395,-678.0,0.0003978,15]
[321046082,1711818638408,-1333.0,0.0003978,15]
[321046084,1711818638420,-151.0,0.0003978,15]
[321046086,1711818638433,-164.30115815,0.0003979,2]
[321046088,1711818638445,-150.5,0.0003979,15]
[321046091,1711818638457,-150.5,0.0003979,15]
[321046093,1711818638470,-678.0,0.0003979,15]
[321046095,1711818638482,-1333.0,0.0003979,15]
[321046097,1711818638494,-151.0,0.0003979,15]
[321046099,1711818638506,-1728.97586001,0.00039797,2]
[321046102,1711818638518,-838238.26345069,0.000398,3]
[321046104,1711818638530,-1072739.23487339,0.000398,2]
[321046106,1711818638545,-450662.98126462,0.000398,2]
[321046112,1711818638585,-385.38170658,0.000398,2]
[321046114,1711818638600,-20062.01168997,0.000398,2]
[321046122,1711818638666,-3316.28574203,0.000398,2]
[321046125,1711818638685,-2233.38966287,0.000398,2]
[321046127,1711818638701,-5399.88976825,0.000398,2]
[321046130,1711818638718,-4644.0,0.000398,2]
[321046189,1711818639839,-722.56987747,0.000398,2]
[321046190,1711818639881,-384697.86904625,0.000398,2]
[321046191,1711818639891,-156.29,0.00039886,2]
[321046192,1711818639902,-1268.0,0.00039986,2]
[321046193,1711818639912,-433.0,0.00039986,2]
[321046194,1711818639921,-605.0,0.00039986,2]
[321046195,1711818639930,-279.0,0.00039986,2]
[321046196,1711818639940,-803.0,0.00039986,2]
[321046197,1711818639950,-1139.0,0.00039986,2]
[321046198,1711818639959,-2984.0,0.00039986,2]
[321046199,1711818639969,-1458.862,0.00039986,2]
[321046200,1711818639979,-150.0,0.00039986,2]
[321046201,1711818639989,-396.0,0.00039986,2]
[321046202,1711818639998,-1628.0,0.00039986,2]
[321046203,1711818640008,-150.0,0.00039986,2]
[321046204,1711818640017,-2426.0,0.00039986,2]
[321046205,1711818640026,-213.0,0.00039986,2]
[321046206,1711818640035,-248.734,0.00039986,2]
[321046207,1711818640045,-1194.0,0.00039986,2]
[321046208,1711818640054,-5687.0,0.00039986,2]
[321046209,1711818640063,-4777.0,0.00039986,2]
[321046210,1711818640072,-1177.0,0.00039986,2]
[321046211,1711818640081,-43018.0,0.00039986,2]
[321046212,1711818640090,-2452.0,0.00039986,2]
[321046213,1711818640099,-1048.0,0.00039986,2]
[321046214,1711818640109,-14480.23209643,0.0004,2]
[321046215,1711818640120,-368.49469884,0.0004,2]
[321046216,1711818640129,-1992.63560356,0.0004,2]
[321046217,1711818640138,-4669.0805315,0.00040001,2]
[321046218,1711818640147,-3174.77299678,0.00040167,14]
[321046219,1711818640157,-467.65867148,0.00040282,32]